fUST/lending_fUST_20250312
["ID","MTS","AMOUNT","RATE_DAILY","PERIOD"]
[355997901,1741789844119,-384.45958159,0.00022191,2]
[355997902,1741789844129,-500.0,0.00022191,2]
[355997903,1741789844139,-343.88885827,0.00022191,2]
[355997904,1741789844148,-500.0,0.00022191,2]
[355997905,1741789844158,-211.01365239,0.00022191,2]
[355997906,1741789844168,-509.3358538,0.00022191,2]
[355997907,1741789844178,-500.0,0.00022191,2]
[355997908,1741789844188,-505.58278429,0.00022191,2]
[355997909,1741789844197,-521.23116966,0.00022191,2]
[355997910,1741789844207,-500.0,0.00022191,2]
[355997911,1741789844216,-576.18946235,0.00022191,2]
[355997912,1741789844226,-500.0,0.00022191,2]
[355997913,1741789844236,-224.3192094,0.00022191,2]
[355997914,1741789844245,-500.0,0.00022191,2]
[355997915,1741789844255,-509.2465999,0.00022191,2]
[355997916,1741789844265,-522.34739435,0.00022191,2]
[355997917,1741789844275,-500.0,0.00022191,2]
[355997918,1741789844284,-517.25234817,0.00022191,2]
[355997919,1741789844294,-301.19389409,0.00022191,2]
[355997920,1741789844304,-821.08,0.00022191,2]
[355997921,1741789844317,-500.0,0.00022191,2]
[355997922,1741789844326,-500.0,0.00022191,2]
[355997923,1741789844336,-329.53176972,0.00022191,2]
[355997924,1741789844346,-500.0,0.00022191,2]
[355997925,1741789844356,-519.5,0.00022191,2]
[355997926,1741789844365,-500.0,0.00022191,2]
[355997927,1741789844375,-500.0,0.00022191,2]
[355997928,1741789844384,-343.57647693,0.00022191,2]
[355997929,1741789844394,-509.63409818,0.00022191,2]
[355997930,1741789844403,-500.0,0.00022191,2]
[355997931,1741789844412,-500.0,0.00022191,2]
[355997932,1741789844421,-257.3944955,0.00022191,2]
[355997933,1741789844430,-500.0,0.00022191,2]
[355997934,1741789844440,-500.0,0.00022191,2]
[355997935,1741789844449,-500.0,0.00022191,2]
[355997936,1741789844458,-500.0,0.00022191,2]
[355997937,1741789844467,-500.0,0.00022191,2]
[355997938,1741789844476,-500.0,0.00022191,2]
[355997939,1741789844485,-500.0,0.00022191,2]
[355997940,1741789844494,-500.0,0.00022191,2]
[355997941,1741789844504,-21843.54,0.00022191,2]
[355997942,1741789844513,-512.42216171,0.00022191,2]
[355997943,1741789844523,-818.52,0.00022191,2]
[355997944,1741789844532,-555.62019798,0.00022191,2]
[355997945,1741789844542,-500.0,0.00022191,2]
[355997946,1741789844551,-515.8096654,0.00022191,2]
[355997947,1741789844564,-560.68061639,0.00022191,2]
[355997948,1741789844574,-21318.59,0.00022191,2]
[355997949,1741789844583,-157.68139554,0.00022191,2]
[355997950,1741789844593,-500.0,0.00022191,2]
[355997951,1741789844602,-523.93245276,0.00022191,2]
[355997952,1741789844612,-1000.0,0.00022191,7]
[355997953,1741789844621,-500.0,0.00022191,2]
[355997954,1741789844630,-500.0,0.00022191,2]
[355997955,1741789844640,-2607.76,0.00022191,2]
[355997956,1741789844650,-500.0,0.00022191,2]
[355997957,1741789844659,-500.0,0.00022191,2]
[355997958,1741789844668,-553.58023356,0.00022191,2]
[355997959,1741789844678,-530.46220326,0.00022191,2]
[355997960,1741789844688,-500.0,0.00022191,2]
[355997961,1741789844697,-500.0,0.00022191,2]
[355997962,1741789844707,-500.0,0.00022191,2]
[355997963,1741789844717,-500.0,0.00022191,2]
[355997964,1741789844727,-500.0,0.00022191,2]
[355997965,1741789844737,-500.0,0.00022191,2]
[355997966,1741789844746,-514.0144533,0.00022191,2]
[355997967,1741789844756,-500.0,0.00022191,2]
[355997968,1741789844765,-554.07105959,0.00022191,2]
[355997969,1741789844775,-500.0,0.00022191,2]
[355997970,1741789844785,-500.0,0.00022191,2]
[355997971,1741789844795,-500.0,0.00022191,2]
[355997972,1741789844804,-499.2198666,0.00022191,2]
[355997973,1741789844816,-197.249733,0.00022191,2]
[355997974,1741789844825,-500.0,0.00022191,2]
[355997975,1741789844835,-605.84644206,0.00022191,2]
[355997976,1741789844844,-538.25588042,0.00022191,2]
[355997977,1741789844854,-500.0,0.00022191,2]
[355997978,1741789844863,-500.0,0.00022191,2]
[355997979,1741789844872,-261.63865964,0.00022191,2]
[355997980,1741789844881,-500.0,0.00022191,2]
[355997981,1741789844891,-500.0,0.00022191,2]
[355997982,1741789844900,-226.82840483,0.00022191,2]
[355997983,1741789844910,-518.16045965,0.00022191,2]
[355997984,1741789844920,-160.0,0.00022191,3]
[355997985,1741789844930,-1506.82113586,0.00022452,3]
[355997986,1741789844946,-500.0,0.00022465,2]
[355997987,1741789844955,-526.56638948,0.00022465,2]
[355997988,1741789844965,-186.13418734,0.00022465,2]
[355997989,1741789844975,-500.0,0.00022465,2]
[355997990,1741789844985,-500.0,0.00022465,2]
[355997991,1741789844999,-205.64621019,0.00022465,2]
[355997992,1741789845008,-364.76,0.00022465,2]
[355997993,1741789845018,-521.39,0.00022465,2]
[355997994,1741789845027,-503.57799636,0.00022465,2]
[355997995,1741789845038,-500.0,0.00022465,2]
[355997996,1741789845048,-500.0,0.00022465,2]
[355997997,1741789845061,-500.0,0.00022465,2]
[355997998,1741789845072,-807.82,0.00022465,2]
[355997999,1741789845083,-500.0,0.00022465,2]
[355998000,1741789845092,-500.0,0.00022465,2]
[355998001,1741789845102,-574.07405993,0.00022465,2]
[355998002,1741789845111,-500.0,0.00022465,2]
[355998003,1741789845120,-500.0,0.00022465,2]
[355998004,1741789845129,-591.69451321,0.00022465,2]
[355998005,1741789845139,-500.0,0.00022465,2]
[355998006,1741789845148,-576.43797414,0.00022465,2]
[355998007,1741789845157,-440.64396723,0.00022465,2]
[355998008,1741789845167,-500.0,0.00022465,2]
[355998009,1741789845176,-500.0,0.00022465,2]
[355998010,1741789845186,-175.18599637,0.00022465,2]
[355998011,1741789845195,-821.08,0.00022465,2]
[355998012,1741789845205,-538.6756551,0.00022465,2]
[355998013,1741789845214,-500.0,0.00022465,2]
[355998014,1741789845224,-500.0,0.00022465,2]
[355998015,1741789845233,-519.5,0.00022465,2]
[355998016,1741789845243,-500.0,0.00022465,2]
[355998017,1741789845253,-500.0,0.00022465,2]
[355998018,1741789845263,-500.0,0.00022465,2]
[355998019,1741789845272,-500.0,0.00022465,2]
[355998020,1741789845283,-212.24074111,0.00022465,2]
[355998021,1741789845292,-500.0,0.00022465,2]
[355998022,1741789845301,-174.86885017,0.00022465,2]
[355998023,1741789845316,-163.86707767,0.00022465,2]
[355998024,1741789845326,-500.0,0.00022465,2]
[355998025,1741789845335,-500.0,0.00022465,2]
[355998026,1741789845345,-214.21204069,0.00022465,2]
[355998027,1741789845355,-500.0,0.00022465,2]
[355998028,1741789845365,-21843.54,0.00022465,2]
[355998029,1741789845374,-818.52,0.00022465,2]
[355998030,1741789845384,-500.0,0.00022465,2]
[355998032,1741789845394,-21318.59,0.00022465,2]
[355998034,1741789845403,-500.0,0.00022465,2]
[355998035,1741789845412,-1000.0,0.00022465,7]
[355998037,1741789845421,-500.0,0.00022465,2]
[355998039,1741789845431,-500.0,0.00022465,2]
[355998041,1741789845440,-2607.76,0.00022465,2]
[355998043,1741789845449,-626.09006797,0.00022465,2]
[355998045,1741789845458,-500.0,0.00022465,2]
[355998047,1741789845468,-500.0,0.00022465,2]
[355998048,1741789845477,-500.0,0.00022465,2]
[355998050,1741789845486,-500.0,0.00022465,2]
[355998052,1741789845496,-500.0,0.00022465,2]
[355998053,1741789845505,-500.0,0.00022465,2]
[355998054,1741789845514,-289.99761573,0.00022465,2]
[355998055,1741789845524,-395.76275535,0.00022465,2]
[355998056,1741789845533,-328.59940718,0.00022465,2]
[355998057,1741789845542,-466.03344923,0.00022465,2]
[355998058,1741789845551,-507.56381159,0.00022465,2]
[355998059,1741789845563,-500.0,0.00022465,2]
[355998060,1741789845572,-499.83,0.00022465,2]
[355998061,1741789845582,-500.0,0.00022465,2]
[355998062,1741789845591,-500.0,0.00022465,2]
[355998063,1741789845600,-469.73613559,0.00022465,2]
[355998065,1741789845610,-175.31412188,0.00022569,2]
[355998067,1741789845619,-500.0,0.00022739,2]
[355998069,1741789845629,-500.0,0.00022739,2]
[355998071,1741789845638,-529.18547977,0.00022739,2]
[355998073,1741789845771,-500.0,0.00022739,2]
[355998074,1741789845781,-500.0,0.00022739,2]
[355998076,1741789845790,-500.0,0.00022739,2]
[355998077,1741789845800,-807.82,0.00022739,2]
[355998078,1741789845810,-500.0,0.00022739,2]
[355998079,1741789845819,-500.0,0.00022739,2]
[355998080,1741789845829,-500.0,0.00022739,2]
[355998081,1741789845838,-500.0,0.00022739,2]
[355998082,1741789845848,-500.0,0.00022739,2]
[355998084,1741789845857,-500.0,0.00022739,2]
[355998086,1741789845867,-500.0,0.00022739,2]
[355998088,1741789845876,-821.08,0.00022739,2]
[355998089,1741789845886,-500.0,0.00022739,2]
[355998090,1741789845895,-500.0,0.00022739,2]
[355998092,1741789845905,-519.5,0.00022739,2]
[355998094,1741789845914,-500.0,0.00022739,2]
[355998096,1741789845923,-500.0,0.00022739,2]
[355998097,1741789845932,-500.0,0.00022739,2]
[355998098,1741789845942,-212.80181401,0.00022739,2]
[355998099,1741789845951,-500.0,0.00022739,2]
[355998100,1741789845961,-522.32441203,0.00022739,2]
[355998101,1741789845970,-366.45740757,0.00022739,2]
[355998102,1741789845980,-500.0,0.00022739,2]
[355998103,1741789845994,-21843.54,0.00022739,2]
[355998104,1741789846004,-818.52,0.00022739,2]
[355998105,1741789846014,-500.0,0.00022739,2]
[355998106,1741789846024,-21318.59,0.00022739,2]
[355998107,1741789846035,-500.0,0.00022739,2]
[355998108,1741789846044,-1000.0,0.00022739,7]
[355998109,1741789846053,-500.0,0.00022739,2]
[355998110,1741789846066,-500.0,0.00022739,2]
[355998111,1741789846076,-2607.76,0.00022739,2]
[355998112,1741789846086,-500.0,0.00022739,2]
[355998113,1741789846095,-500.0,0.00022739,2]
[355998114,1741789846104,-307.35920544,0.00022739,2]
[355998115,1741789846113,-500.0,0.00022739,2]
[355998116,1741789846123,-500.0,0.00022739,2]
[355998117,1741789846132,-500.0,0.00022739,2]
[355998118,1741789846142,-500.0,0.00022739,2]
[355998119,1741789846151,-500.0,0.00022739,2]
[355998120,1741789846160,-500.0,0.00022739,2]
[355998121,1741789846170,-160.0,0.00022796,5]
[355998122,1741789846179,-245.41950417,0.00023,2]
[355998123,1741789846189,-3979.38334954,0.00023,30]
[355998124,1741789846199,-500.0,0.00023013,2]
[355998125,1741789846208,-500.0,0.00023013,2]
[355998126,1741789846218,-500.0,0.00023013,2]
[355998127,1741789846227,-500.0,0.00023013,2]
[355998128,1741789846236,-500.0,0.00023013,2]
[355998129,1741789846245,-807.82,0.00023013,2]
[355998130,1741789846254,-500.0,0.00023013,2]
[355998131,1741789846264,-500.0,0.00023013,2]
[355998132,1741789846273,-500.0,0.00023013,2]
[355998133,1741789846283,-500.0,0.00023013,2]
[355998134,1741789846292,-500.0,0.00023013,2]
[355998135,1741789846301,-500.0,0.00023013,2]
[355998136,1741789846313,-500.0,0.00023013,2]
[355998137,1741789846322,-821.08,0.00023013,2]
[355998138,1741789846332,-500.0,0.00023013,2]
[355998139,1741789846341,-500.0,0.00023013,2]
[355998140,1741789846350,-519.5,0.00023013,2]
[355998141,1741789846359,-181.48827802,0.00023013,2]
[355998142,1741789846368,-486.34952079,0.00023013,2]
[355998143,1741789846378,-568.32383695,0.00023013,2]
[355998144,1741789846387,-500.0,0.00023013,2]
[355998145,1741789846396,-500.0,0.00023013,2]
[355998146,1741789846405,-21843.54,0.00023013,2]
[355998147,1741789846415,-818.52,0.00023013,2]
[355998148,1741789846424,-151.0,0.00023013,7]
[355998149,1741789846434,-500.0,0.00023013,2]
[355998150,1741789846444,-151.0,0.00023013,7]
[355998151,1741789846453,-21318.59,0.00023013,2]
[355998152,1741789846463,-500.0,0.00023013,2]
[355998153,1741789846472,-1000.0,0.00023013,7]
[355998154,1741789846481,-500.0,0.00023013,2]
[355998155,1741789846490,-500.0,0.00023013,2]
[355998156,1741789846500,-2607.76,0.00023013,2]
[355998157,1741789846509,-500.0,0.00023013,2]
[355998158,1741789846519,-500.0,0.00023013,2]
[355998159,1741789846528,-500.0,0.00023013,2]
[355998160,1741789846538,-151.0,0.00023013,7]
[355998161,1741789846547,-151.0,0.00023013,7]
[355998162,1741789846557,-500.0,0.00023013,2]
[355998163,1741789846567,-500.0,0.00023013,2]
[355998164,1741789846576,-151.0,0.00023013,7]
[355998165,1741789846585,-151.0,0.00023013,7]
[355998166,1741789846595,-292.280989,0.00023013,7]
[355998167,1741789846604,-500.0,0.00023013,2]
[355998168,1741789846613,-500.0,0.00023013,2]
[355998169,1741789846623,-500.0,0.00023013,2]
[355998170,1741789846632,-160.0,0.00023068,4]
[355998171,1741789846641,-1506.82113586,0.0002321,3]
[355998172,1741789846650,-1050.48386192,0.0002322,2]
[355998173,1741789846659,-500.0,0.00023287,2]
[355998174,1741789846669,-500.0,0.00023287,2]
[355998175,1741789846678,-500.0,0.00023287,2]
[355998176,1741789846687,-500.0,0.00023287,2]
[355998177,1741789846696,-500.0,0.00023287,2]
[355998178,1741789846705,-807.82,0.00023287,2]
[355998179,1741789846714,-500.0,0.00023287,2]
[355998180,1741789846723,-500.0,0.00023287,2]
[355998181,1741789846733,-500.0,0.00023287,2]
[355998182,1741789846742,-500.0,0.00023287,2]
[355998183,1741789846752,-500.0,0.00023287,2]
[355998184,1741789846762,-500.0,0.00023287,2]
[355998185,1741789846771,-500.0,0.00023287,2]
[355998186,1741789846780,-821.08,0.00023287,2]
[355998187,1741789846790,-500.0,0.00023287,2]
[355998188,1741789846799,-178.10453145,0.00023287,2]
[355998189,1741789846808,-519.5,0.00023287,2]
[355998190,1741789846819,-260.32,0.00023287,2]
[355998191,1741789846828,-500.0,0.00023287,2]
[355998192,1741789846837,-500.0,0.00023287,2]
[355998193,1741789846847,-21843.54,0.00023287,2]
[355998194,1741789846856,-818.52,0.00023287,2]
[355998195,1741789846865,-500.0,0.00023287,2]
[355998196,1741789846875,-21318.59,0.00023287,2]
[355998197,1741789846884,-500.0,0.00023287,2]
[355998198,1741789846894,-1000.0,0.00023287,7]
[355998199,1741789846903,-500.0,0.00023287,2]
[355998200,1741789846913,-500.0,0.00023287,2]
[355998201,1741789846923,-2607.76,0.00023287,2]
[355998202,1741789846932,-500.0,0.00023287,2]
[355998203,1741789846941,-500.0,0.00023287,2]
[355998204,1741789846951,-500.0,0.00023287,2]
[355998205,1741789846960,-500.0,0.00023287,2]
[355998206,1741789846970,-327.20072768,0.00023287,2]
[355998207,1741789846979,-500.0,0.00023287,2]
[355998208,1741789846991,-500.0,0.00023287,2]
[355998209,1741789847003,-500.0,0.00023287,2]
[355998210,1741789847013,-150.0,0.00023525,2]
[355998211,1741789847022,-500.0,0.00023561,2]
[355998212,1741789847032,-500.0,0.00023561,2]
[355998213,1741789847042,-529.33615281,0.00023561,2]
[355998214,1741789847051,-500.0,0.00023561,2]
[355998215,1741789847061,-500.0,0.00023561,2]
[355998216,1741789847072,-807.82,0.00023561,2]
[355998217,1741789847081,-500.0,0.00023561,2]
[355998218,1741789847090,-500.0,0.00023561,2]
[355998219,1741789847100,-166.22340459,0.00023561,2]
[355998220,1741789847109,-500.0,0.00023561,2]
[355998221,1741789847119,-500.0,0.00023561,2]
[355998222,1741789847128,-151.0,0.00023561,7]
[355998223,1741789847138,-500.0,0.00023561,2]
[355998224,1741789847148,-151.0,0.00023561,7]
[355998225,1741789847158,-500.0,0.00023561,2]
[355998226,1741789847167,-160.568377,0.00023561,7]
[355998227,1741789847177,-821.08,0.00023561,2]
[355998228,1741789847187,-500.0,0.00023561,2]
[355998229,1741789847196,-151.0,0.00023561,7]
[355998230,1741789847206,-151.0,0.00023561,7]
[355998231,1741789847215,-151.0,0.00023561,7]
[355998232,1741789847225,-151.930361,0.00023561,7]
[355998233,1741789847235,-151.0,0.00023561,7]
[355998234,1741789847245,-519.5,0.00023561,2]
[355998235,1741789847255,-151.0,0.00023561,7]
[355998236,1741789847265,-151.0,0.00023561,7]
[355998237,1741789847275,-151.0,0.00023561,7]
[355998238,1741789847284,-151.0,0.00023561,7]
[355998239,1741789847293,-151.0,0.00023561,7]
[355998240,1741789847303,-196.10961402,0.00023561,2]
[355998241,1741789847314,-151.0,0.00023561,7]
[355998242,1741789847325,-151.0,0.00023561,7]
[355998243,1741789847335,-21843.54,0.00023561,2]
[355998244,1741789847344,-500.0,0.00023561,2]
[355998245,1741789847353,-818.52,0.00023561,2]
[355998246,1741789847363,-500.0,0.00023561,2]
[355998247,1741789847373,-21318.59,0.00023561,2]
[355998248,1741789847383,-500.0,0.00023561,2]
[355998249,1741789847392,-1000.0,0.00023561,7]
[355998250,1741789847402,-500.0,0.00023561,2]
[355998251,1741789847412,-500.0,0.00023561,2]
[355998252,1741789847422,-252.094449,0.00023561,7]
[355998253,1741789847431,-2607.76,0.00023561,2]
[355998254,1741789847441,-500.0,0.00023561,2]
[355998255,1741789847451,-252.094449,0.00023561,7]
[355998256,1741789847460,-500.0,0.00023561,2]
[355998257,1741789847470,-500.0,0.00023561,2]
[355998258,1741789847480,-500.0,0.00023561,2]
[355998259,1741789847491,-500.0,0.00023561,2]
[355998260,1741789847500,-500.0,0.00023561,2]
[355998261,1741789847509,-500.0,0.00023561,2]
[355998262,1741789847519,-823.0,0.00023724,2]
[355998263,1741789847529,-500.0,0.00023835,2]
[355998264,1741789847538,-500.0,0.00023835,2]
[355998265,1741789847548,-153.327094,0.00023835,7]
[355998266,1741789847557,-500.0,0.00023835,2]
[355998267,1741789847567,-500.0,0.00023835,2]
[355998268,1741789847576,-807.82,0.00023835,2]
[355998269,1741789847585,-151.0,0.00023835,7]
[355998270,1741789847594,-500.0,0.00023835,2]
[355998271,1741789847604,-500.0,0.00023835,2]
[355998272,1741789847613,-500.0,0.00023835,2]
[355998273,1741789847623,-500.0,0.00023835,2]
[355998274,1741789847632,-151.0,0.00023835,7]
[355998275,1741789847642,-160.070529,0.00023835,7]
[355998276,1741789847653,-151.0,0.00023835,7]
[355998277,1741789847662,-151.0,0.00023835,7]
[355998278,1741789847671,-500.0,0.00023835,2]
[355998279,1741789847681,-500.0,0.00023835,2]
[355998280,1741789847691,-1078.887824,0.00023835,7]
[355998281,1741789847701,-160.0,0.00023835,7]
[355998282,1741789847710,-1078.887824,0.00023835,7]
[355998283,1741789847719,-821.08,0.00023835,2]
[355998284,1741789847729,-500.0,0.00023835,2]
[355998285,1741789847739,-519.5,0.00023835,2]
[355998286,1741789847748,-21843.54,0.00023835,2]
[355998287,1741789847758,-500.0,0.00023835,2]
[355998288,1741789847767,-818.52,0.00023835,2]
[355998289,1741789847777,-500.0,0.00023835,2]
[355998290,1741789847787,-21318.59,0.00023835,2]
[355998291,1741789847797,-500.0,0.00023835,2]
[355998292,1741789847807,-1000.0,0.00023835,7]
[355998293,1741789847817,-500.0,0.00023835,2]
[355998294,1741789847827,-186.55357227,0.00023835,2]
[355998295,1741789847836,-2607.76,0.00023835,2]
[355998296,1741789847846,-500.0,0.00023835,2]
[355998297,1741789847856,-500.0,0.00023835,2]
[355998298,1741789847866,-500.0,0.00023835,2]
[355998299,1741789847877,-500.0,0.00023835,2]
[355998300,1741789847886,-500.0,0.00023835,2]
[355998301,1741789847896,-500.0,0.00023835,2]
[355998302,1741789847905,-500.0,0.00023835,2]
[355998303,1741789847915,-160.0,0.00023873,6]
[355998304,1741789847925,-160.0,0.00023944,5]
[355998305,1741789847933,-1506.82113586,0.00023969,3]
[355998306,1741789847942,-416.66666667,0.00024,7]
[355998307,1741789847953,-1666.42651156,0.00024,2]
[355998308,1741789847962,-154.59671782,0.00024,120]
[355998309,1741789847971,-15577.25547611,0.00024,7]
[355998310,1741789847981,-250.0,0.00024073,2]
[355998311,1741789847991,-151.0,0.000241,5]
[355998312,1741789848004,-500.0,0.00024109,2]
[355998313,1741789848013,-500.0,0.00024109,2]
[355998314,1741789848022,-267.43025,0.00024109,7]
[355998315,1741789848033,-151.0,0.00024109,7]
[355998316,1741789848043,-500.0,0.00024109,2]
[355998317,1741789848052,-500.0,0.00024109,2]
[355998318,1741789848063,-807.82,0.00024109,2]
[355998319,1741789848074,-500.0,0.00024109,2]
[355998320,1741789848084,-500.0,0.00024109,2]
[355998321,1741789848093,-500.0,0.00024109,2]
[355998322,1741789848103,-500.0,0.00024109,2]
[355998323,1741789848112,-500.0,0.00024109,2]
[355998324,1741789848122,-500.0,0.00024109,2]
[355998325,1741789848132,-821.08,0.00024109,2]
[355998326,1741789848141,-500.0,0.00024109,2]
[355998327,1741789848151,-519.5,0.00024109,2]
[355998328,1741789848161,-21843.54,0.00024109,2]
[355998329,1741789848171,-500.0,0.00024109,2]
[355998330,1741789848181,-818.52,0.00024109,2]
[355998331,1741789848191,-500.0,0.00024109,2]
[355998332,1741789848201,-21318.59,0.00024109,2]
[355998333,1741789848212,-500.0,0.00024109,2]
[355998334,1741789848222,-1000.0,0.00024109,7]
[355998335,1741789848232,-562.30042109,0.00024109,2]
[355998336,1741789848242,-2607.76,0.00024109,2]
[355998337,1741789848252,-500.0,0.00024109,2]
[355998338,1741789848262,-500.0,0.00024109,2]
[355998339,1741789848272,-500.0,0.00024109,2]
[355998340,1741789848282,-500.0,0.00024109,2]
[355998341,1741789848292,-500.0,0.00024109,2]
[355998342,1741789848303,-500.0,0.00024109,2]
[355998343,1741789848314,-500.0,0.00024109,2]
[355998344,1741789848324,-742.97118619,0.0002415,2]
[355998345,1741789848333,-500.0,0.00024383,2]
[355998346,1741789848343,-500.0,0.00024383,2]
[355998347,1741789848354,-165.234174,0.00024383,7]
[355998348,1741789848365,-151.0,0.00024383,7]
[355998349,1741789848376,-278.534192,0.00024383,7]
[355998350,1741789848387,-513.76066397,0.00024383,2]
[355998351,1741789848397,-151.69940185,0.00024383,2]
[355998352,1741789848407,-807.82,0.00024383,2]
[355998353,1741789848418,-500.0,0.00024383,2]
[355998354,1741789848428,-500.0,0.00024383,2]
[355998355,1741789848438,-151.0,0.00024383,7]
[355998356,1741789848448,-161.402126,0.00024383,7]
[355998357,1741789848459,-500.0,0.00024383,2]
[355998358,1741789848468,-500.0,0.00024383,2]
[355998359,1741789848478,-500.0,0.00024383,2]
[355998360,1741789848488,-557.73771726,0.00024383,2]
[355998361,1741789848497,-821.08,0.00024383,2]
[355998362,1741789848507,-500.0,0.00024383,2]
[355998363,1741789848516,-519.5,0.00024383,2]
[355998364,1741789848526,-21843.54,0.00024383,2]
[355998365,1741789848536,-500.0,0.00024383,2]
[355998366,1741789848672,-151.0,0.00024383,7]
[355998367,1741789848683,-818.52,0.00024383,2]
[355998368,1741789848693,-151.0,0.00024383,7]
[355998369,1741789848702,-502.03769256,0.00024383,2]
[355998370,1741789848712,-21318.59,0.00024383,2]
[355998371,1741789848722,-500.0,0.00024383,2]
[355998372,1741789848732,-1000.0,0.00024383,7]
[355998373,1741789848742,-2607.76,0.00024383,2]
[355998374,1741789848751,-330.92526822,0.00024383,2]
[355998375,1741789848761,-500.0,0.00024383,2]
[355998376,1741789848770,-500.0,0.00024383,2]
[355998377,1741789848780,-233.710896,0.00024383,7]
[355998378,1741789848790,-151.0,0.00024383,7]
[355998379,1741789848800,-500.0,0.00024383,2]
[355998380,1741789848812,-151.0,0.00024383,7]
[355998381,1741789848823,-151.0,0.00024383,7]
[355998382,1741789848833,-500.0,0.00024383,2]
[355998383,1741789848843,-500.0,0.00024383,2]
[355998384,1741789848853,-4844.9249062,0.00024401,2]
[355998385,1741789848864,-239268.34639001,0.000245,10]
[355998386,1741789848874,-15577.25547611,0.000245,10]
[355998387,1741789848884,-742.97118619,0.00024518,2]
[355998388,1741789848895,-436.0617693,0.00024621,2]
[355998389,1741789848906,-2129.02649266,0.00024651,2]
[355998390,1741789848918,-500.0,0.00024657,2]
[355998391,1741789848928,-807.82,0.00024657,2]
[355998392,1741789848938,-500.0,0.00024657,2]
[355998393,1741789848948,-500.0,0.00024657,2]
[355998394,1741789848958,-500.0,0.00024657,2]
[355998395,1741789848968,-500.0,0.00024657,2]
[355998396,1741789848979,-500.0,0.00024657,2]
[355998397,1741789848993,-821.08,0.00024657,2]
[355998398,1741789849004,-500.0,0.00024657,2]
[355998399,1741789849014,-519.5,0.00024657,2]
[355998400,1741789849024,-260.32,0.00024657,2]
[355998401,1741789849035,-21843.54,0.00024657,2]
[355998402,1741789849045,-500.0,0.00024657,2]
[355998403,1741789849055,-818.52,0.00024657,2]
[355998404,1741789849068,-21318.59,0.00024657,2]
[355998405,1741789849078,-500.0,0.00024657,2]
[355998406,1741789849088,-1000.0,0.00024657,7]
[355998407,1741789849098,-2607.76,0.00024657,2]
[355998408,1741789849108,-500.0,0.00024657,2]
[355998409,1741789849119,-500.0,0.00024657,2]
[355998410,1741789849129,-549.82592055,0.00024657,2]
[355998411,1741789849139,-500.0,0.00024657,2]
[355998412,1741789849149,-500.0,0.00024657,2]
[355998413,1741789849159,-200.0,0.00024658,2]
[355998414,1741789849170,-380.0,0.00024658,2]
[355998415,1741789849179,-3350.401966,0.00024658,2]
[355998416,1741789849190,-267.8779989,0.00024658,2]
[355998417,1741789849201,-1506.82113586,0.00024728,3]
[355998418,1741789849211,-151.0,0.000248,7]
[355998419,1741789849221,-151.0,0.000248,7]
[355998420,1741789849231,-151.0,0.000248,7]
[355998421,1741789849241,-151.0,0.000248,7]
[355998422,1741789849251,-151.0,0.000248,7]